fUSD/lending_fUSD_20250826
["ID","MTS","AMOUNT","RATE_DAILY","PERIOD"]
[381424495,1756191072141,-1221.0,0.000207,2]
[381424496,1756191072151,-1221.0,0.000207,2]
[381424497,1756191072160,-1221.0,0.000207,2]
[381424498,1756191072170,-200.0,0.0002071,7]
[381424499,1756191072180,-2319.48991129,0.00020712,2]
[381424500,1756191072190,-1414.2821876,0.00020712,2]
[381424501,1756191072200,-3000.0,0.00020712,2]
[381424502,1756191072210,-3000.0,0.00020712,2]
[381424503,1756191072220,-248.05959402,0.00020712,2]
[381424504,1756191072230,-605.0157879,0.00020785,2]
[381424505,1756191072240,-54359.90040185,0.000208,3]
[381424506,1756191072251,-405.0,0.00020811,2]
[381424507,1756191072260,-300.0,0.00020821,4]
[381424508,1756191072271,-168.3888056,0.00020822,2]
[381424509,1756191072280,-9086.21468399,0.0002085,2]
[381424510,1756191072292,-234.02,0.000209,2]
[381424511,1756191072304,-1580.82,0.000209,2]
[381424512,1756191072317,-2715.5,0.000209,2]
[381424513,1756191072326,-905.16,0.000209,2]
[381424514,1756191072336,-2350.14,0.000209,2]
[381424515,1756191072346,-5767.31,0.000209,2]
[381424516,1756191072355,-5767.31,0.000209,2]
[381424517,1756191072364,-4003.48,0.000209,2]
[381424518,1756191072374,-4003.48,0.000209,2]
[381424519,1756191072384,-1796.99,0.000209,2]
[381424520,1756191072393,-1796.99,0.000209,2]
[381424521,1756191072402,-849.19,0.000209,2]
[381424522,1756191072412,-849.19,0.000209,2]
[381424523,1756191072421,-458.69889469,0.000209,7]
[381424524,1756191072430,-212.1464853,0.000209,7]
[381424525,1756191072439,-298.75718287,0.000209,2]
[381424526,1756191072449,-200.0,0.0002091,7]
[381424527,1756191072458,-2000.0,0.00021,4]
[381424528,1756191072468,-20000.0,0.00021,2]
[381424529,1756191072477,-4620.80229652,0.00021,2]
[381424530,1756191072486,-156912.78143074,0.00021,2]
[381424531,1756191072496,-4869.67819292,0.00021,2]
[381424532,1756191072505,-2000.0,0.00021,2]
[381424533,1756191072516,-1169.34084742,0.00021,2]
[381424534,1756191072525,-193.01092232,0.00021,2]
[381424535,1756191072536,-152.0,0.00021,2]
[381424536,1756191072546,-152.0,0.00021,2]
[381424537,1756191072556,-152.0,0.00021,2]
[381424538,1756191072567,-152.0,0.00021,2]
[381424539,1756191072576,-152.0,0.00021,2]
[381424540,1756191072587,-152.0,0.00021,2]
[381424541,1756191072596,-200.63582112,0.00021,2]
[381424542,1756191072606,-154.0,0.00021,2]
[381424543,1756191072615,-154.0,0.00021,2]
[381424544,1756191072625,-154.0,0.00021,2]
[381424545,1756191072637,-154.0,0.00021,2]
[381424546,1756191072646,-154.0,0.00021,2]
[381424547,1756191072655,-151.0,0.00021,2]
[381424548,1756191072665,-1221.0,0.00021,2]
[381424549,1756191072674,-1221.0,0.00021,2]
[381424550,1756191072684,-1292.59296445,0.00021,2]
[381424551,1756191072694,-151.0,0.00021,2]
[381424552,1756191072703,-152.0,0.00021,2]
[381424553,1756191072712,-152.0,0.00021,2]
[381424554,1756191072722,-152.0,0.00021,2]
[381424555,1756191072731,-152.0,0.00021,2]
[381424556,1756191072740,-152.0,0.00021,2]
[381424557,1756191072749,-152.0,0.00021,2]
[381424558,1756191072760,-152.0,0.00021,2]
[381424559,1756191072771,-153.97931883,0.00021,2]
[381424560,1756191072783,-1221.0,0.00021,2]
[381424561,1756191072793,-152.0,0.00021,2]
[381424562,1756191072803,-152.0,0.00021,2]
[381424563,1756191073155,-1221.0,0.00021,2]
[381424564,1756191073180,-152.0,0.00021,2]
[381424565,1756191073190,-152.0,0.00021,2]
[381424566,1756191073201,-152.0,0.00021,2]
[381424567,1756191073211,-1221.0,0.00021,2]
[381424568,1756191073221,-1221.0,0.00021,2]
[381424569,1756191073230,-152.0,0.00021,2]
[381424570,1756191073245,-1221.0,0.00021,2]
[381424571,1756191073255,-1221.0,0.00021,2]
[381424572,1756191073264,-154.0,0.00021,2]
[381424573,1756191073274,-1221.0,0.00021,2]
[381424574,1756191073283,-152.0,0.00021,2]
[381424575,1756191073293,-152.0,0.00021,2]
[381424576,1756191073303,-154.0,0.00021,2]
[381424577,1756191073314,-152.0,0.00021,2]
[381424578,1756191073324,-154.0,0.00021,2]
[381424579,1756191073345,-154.0,0.00021,2]
[381424580,1756191073368,-154.0,0.00021,2]
[381424581,1756191073381,-154.0,0.00021,2]
[381424582,1756191073391,-154.0,0.00021,2]
[381424583,1756191073402,-152.0,0.00021,2]
[381424584,1756191073411,-152.0,0.00021,2]
[381424585,1756191073421,-152.0,0.00021,2]
[381424586,1756191073432,-152.0,0.00021,2]
[381424587,1756191073441,-152.0,0.00021,2]
[381424588,1756191073450,-152.0,0.00021,2]
[381424589,1756191073460,-152.0,0.00021,2]
[381424590,1756191073469,-152.0,0.00021,2]
[381424591,1756191073479,-152.0,0.00021,2]
[381424592,1756191073488,-152.0,0.00021,2]
[381424593,1756191073498,-151.0,0.00021,2]
[381424594,1756191073507,-151.0,0.00021,2]
[381424595,1756191073516,-151.0,0.00021,2]
[381424596,1756191073526,-151.0,0.00021,2]
[381424597,1756191073535,-151.0,0.00021,2]
[381424598,1756191073544,-151.0,0.00021,2]
[381424599,1756191073553,-151.0,0.00021,2]
[381424600,1756191073563,-4000.0,0.00021,4]
[381424601,1756191073573,-386.87667747,0.00021021,2]
[381424602,1756191073583,-320.74051982,0.00021021,2]
[381424603,1756191073592,-200.0,0.0002109,2]
[381424604,1756191073603,-160.0,0.000211,3]
[381424605,1756191073614,-417.0,0.000211,2]
[381424606,1756191073623,-16375.93707658,0.00021111,2]
[381424607,1756191073633,-500.0,0.00021138,2]
[381424608,1756191073642,-364.5,0.00021147,2]
[381424609,1756191073652,-1000.0,0.00021187,2]
[381424610,1756191073662,-3500.0,0.0002126,2]
[381424611,1756191073672,-3500.0,0.0002126,2]
[381424612,1756191073681,-1300.0,0.000213,4]
[381424613,1756191073690,-153.0,0.00021309,2]
[381424614,1756191073699,-153.0,0.0002131,2]
[381424615,1756191073708,-153.0,0.00021321,2]
[381424616,1756191073718,-153.0,0.00021332,2]
[381424617,1756191073728,-153.0,0.00021344,2]
[381424618,1756191073737,-153.0,0.00021356,2]
[381424619,1756191073747,-174.61919141,0.0002137,2]
[381424620,1756191073757,-37410.81,0.000214,2]
[381424621,1756191073768,-7116.56,0.000214,2]
[381424622,1756191073778,-619.82538668,0.000214,2]
[381424623,1756191073788,-683.0,0.000214,2]
[381424624,1756191073798,-150.0,0.00021473,2]
[381424625,1756191073807,-450.0,0.0002149,2]
[381424626,1756191073818,-1391669.7149056,0.00021495,2]
[381424627,1756191073828,-1500.0,0.00021495,14]
[381424628,1756191073838,-1500.0,0.00021495,14]
[381424629,1756191073848,-1563.464284,0.00021495,14]
[381424630,1756191073858,-10160.06799706,0.000215,3]
[381424631,1756191073868,-2715.5,0.000215,2]
[381424632,1756191073878,-905.16,0.000215,2]
[381424633,1756191073887,-217.58035609,0.000215,2]
[381424634,1756191073897,-200.0,0.0002151,7]
[381424635,1756191073907,-8714.6,0.000216,2]
[381424636,1756191073916,-774.43,0.000216,2]
[381424637,1756191073926,-3367.5,0.000216,2]
[381424638,1756191073936,-1122.5,0.000216,2]
[381424639,1756191073946,-56061.12162526,0.000216,2]
[381424640,1756191073955,-600.0,0.00021616,2]
[381424641,1756191073965,-200.0,0.0002171,7]
[381424642,1756191073974,-160.0,0.000218,10]
[381424643,1756191073984,-1900.0,0.000218,5]
[381424644,1756191073993,-1753.0,0.000218,3]
[381424645,1756191074003,-457783.0485826,0.000218,2]
[381424646,1756191074012,-501.85,0.000218,4]
[381424647,1756191074022,-2000.0,0.000218,2]
[381424648,1756191074031,-506.89168008,0.00021808,2]
[381424649,1756191074042,-4000.0,0.00021808,2]
[381424650,1756191074051,-200.0,0.0002181,7]
[381424651,1756191074060,-193.417999,0.00021826,2]
[381424652,1756191074070,-2855.3804012,0.00021878,8]
[381424653,1756191074079,-2031.0,0.0002189,2]
[381424654,1756191074089,-1256.0,0.0002189,2]
[381424655,1756191074099,-926.0,0.0002189,2]
[381424656,1756191074108,-3374.0,0.0002189,2]
[381424657,1756191074117,-566.0,0.0002189,2]
[381424658,1756191074128,-1658.0,0.0002189,2]
[381424659,1756191074137,-1298.0,0.0002189,2]
[381424660,1756191074146,-599.0,0.0002189,2]
[381424661,1756191074156,-895.0,0.0002189,2]
[381424662,1756191074166,-1173.0,0.0002189,2]
[381424663,1756191074175,-21104.0,0.0002189,2]
[381424664,1756191074184,-4155.0,0.0002189,2]
[381424665,1756191074194,-6146.0,0.0002189,2]
[381424666,1756191074204,-718.0,0.0002189,2]
[381424667,1756191074213,-2789.63,0.000219,2]
[381424668,1756191074223,-200.0,0.0002191,7]
[381424669,1756191074233,-603.20364015,0.00021917,2]
[381424670,1756191074242,-500.0,0.00021918,2]
[381424671,1756191074252,-500.84492074,0.00021918,2]
[381424672,1756191074261,-293.796468,0.00021918,2]
[381424673,1756191074270,-183.704545,0.00021918,2]
[381424674,1756191074279,-183.704545,0.00021918,2]
[381424675,1756191074288,-183.704545,0.00021918,2]
[381424676,1756191074298,-183.704545,0.00021918,2]
[381424677,1756191074307,-183.704545,0.00021918,2]
[381424678,1756191074317,-183.704545,0.00021918,2]
[381424679,1756191074326,-183.704545,0.00021918,2]
[381424680,1756191074336,-183.704545,0.00021918,2]
[381424681,1756191074345,-183.704545,0.00021918,2]
[381424682,1756191074355,-183.704545,0.00021918,2]
[381424683,1756191074364,-183.704545,0.00021918,2]
[381424684,1756191074373,-183.704545,0.00021918,2]
[381424685,1756191074383,-183.704545,0.00021918,2]
[381424686,1756191074392,-183.704545,0.00021918,2]
[381424687,1756191074401,-183.704545,0.00021918,2]
[381424688,1756191074411,-183.704545,0.00021918,2]
[381424689,1756191074420,-183.704545,0.00021918,2]
[381424690,1756191074430,-183.704545,0.00021918,2]
[381424691,1756191074439,-183.704545,0.00021918,2]
[381424692,1756191074448,-183.704543,0.00021918,2]
[381424693,1756191074458,-383.528069,0.00021918,2]
[381424694,1756191074467,-383.528069,0.00021918,2]
[381424695,1756191074476,-383.528069,0.00021918,2]
[381424696,1756191074486,-383.528069,0.00021918,2]
[381424697,1756191074496,-383.528069,0.00021918,2]
[381424698,1756191074505,-383.528069,0.00021918,2]
[381424699,1756191074515,-383.528069,0.00021918,2]
[381424700,1756191074524,-383.528069,0.00021918,2]
[381424701,1756191074534,-383.528069,0.00021918,2]
[381424702,1756191074544,-383.528069,0.00021918,2]
[381424703,1756191074554,-383.528069,0.00021918,2]
[381424704,1756191074564,-383.528069,0.00021918,2]
[381424705,1756191074574,-383.528069,0.00021918,2]
[381424706,1756191074584,-383.528069,0.00021918,2]
[381424707,1756191074594,-383.528069,0.00021918,2]
[381424708,1756191074603,-383.528069,0.00021918,2]
[381424709,1756191074613,-383.528069,0.00021918,2]
[381424710,1756191074623,-383.528069,0.00021918,2]
[381424711,1756191074632,-383.528069,0.00021918,2]
[381424712,1756191074642,-383.528066,0.00021918,2]
[381424713,1756191074651,-159.901781,0.00021918,2]
[381424714,1756191074661,-5000.0,0.00021918,2]
[381424715,1756191074670,-520.53136261,0.00021918,2]
[381424716,1756191074680,-500.0,0.00021918,2]
[381424717,1756191074689,-181.08010149,0.00021918,2]
[381424718,1756191074698,-500.0,0.00021919,2]
[381424719,1756191074707,-3904.89670461,0.0002192,4]
[381424720,1756191074717,-3904.89670461,0.0002192,4]
[381424721,1756191074726,-3904.89670461,0.0002192,4]
[381424722,1756191074736,-3904.89670461,0.0002192,4]
[381424723,1756191074748,-3904.89670461,0.0002192,4]
[381424724,1756191074759,-3904.89670461,0.0002192,4]
[381424725,1756191074769,-3904.89670461,0.0002192,4]
[381424726,1756191074782,-3904.89670461,0.0002192,4]
[381424727,1756191074792,-3904.89670461,0.0002192,4]
[381424728,1756191074801,-3904.89670461,0.0002192,4]
[381424729,1756191074812,-3904.89670461,0.0002192,4]
[381424730,1756191074822,-3904.89670461,0.0002192,4]
[381424731,1756191074832,-3904.89670461,0.0002192,4]
[381424732,1756191074841,-3904.89670461,0.0002192,4]
[381424733,1756191074853,-3904.89670461,0.0002192,4]
[381424734,1756191074862,-3904.89670461,0.0002192,4]
[381424735,1756191074872,-3904.89670461,0.0002192,4]
[381424736,1756191074883,-3904.89670461,0.0002192,4]
[381424737,1756191074893,-3904.89670461,0.0002192,4]
[381424738,1756191074902,-3904.89,0.0002192,4]
[381424739,1756191074911,-9111.42564409,0.0002192,4]
[381424740,1756191074921,-9111.42564409,0.0002192,4]
[381424741,1756191074931,-9111.42564409,0.0002192,4]
[381424742,1756191074940,-9111.42564409,0.0002192,4]
[381424743,1756191074950,-9111.42564409,0.0002192,4]
[381424744,1756191074959,-9111.42564409,0.0002192,4]
[381424745,1756191074969,-9111.42564409,0.0002192,4]
[381424746,1756191074979,-9111.42564409,0.0002192,4]
[381424747,1756191074988,-9111.42564409,0.0002192,4]
[381424748,1756191074997,-9111.42564409,0.0002192,4]
[381424749,1756191075007,-9111.42564409,0.0002192,4]
[381424750,1756191075017,-9111.42564409,0.0002192,4]
[381424751,1756191075026,-9111.42564409,0.0002192,4]
[381424752,1756191075036,-9111.42564409,0.0002192,4]
[381424753,1756191075046,-9111.42564409,0.0002192,4]
[381424754,1756191075056,-9111.42564409,0.0002192,4]
[381424755,1756191075066,-9111.42564409,0.0002192,4]
[381424756,1756191075076,-9111.42564409,0.0002192,4]
[381424757,1756191075085,-9111.42564409,0.0002192,4]
[381424758,1756191075095,-9111.42,0.0002192,4]
[381424759,1756191075105,-2284.63136497,0.0002192,4]
[381424760,1756191075115,-2284.63136497,0.0002192,4]
[381424761,1756191075124,-2284.63136497,0.0002192,4]
[381424762,1756191075133,-2284.63136497,0.0002192,4]
[381424763,1756191075142,-2284.63136497,0.0002192,4]
[381424764,1756191075158,-2284.63136497,0.0002192,4]
[381424765,1756191075168,-2284.63136497,0.0002192,4]
[381424766,1756191075178,-2284.63136497,0.0002192,4]
[381424767,1756191075187,-2284.63136497,0.0002192,4]
[381424768,1756191075196,-2284.63136497,0.0002192,4]
[381424769,1756191075205,-2284.63136497,0.0002192,4]
[381424770,1756191075215,-2284.63136497,0.0002192,4]
[381424771,1756191075224,-2284.63136497,0.0002192,4]
[381424772,1756191075234,-2284.63136497,0.0002192,4]
[381424773,1756191075243,-2284.63136497,0.0002192,4]
[381424774,1756191075252,-2284.63136497,0.0002192,4]
[381424775,1756191075262,-2284.63136497,0.0002192,4]
[381424776,1756191075271,-2284.63136497,0.0002192,4]
[381424777,1756191075281,-2284.63136497,0.0002192,4]
[381424778,1756191075290,-2284.63,0.0002192,4]
[381424779,1756191075300,-5330.80651826,0.0002192,4]
[381424780,1756191075310,-5330.80651826,0.0002192,4]
[381424781,1756191075320,-5330.80651826,0.0002192,4]
[381424782,1756191075330,-5330.80651826,0.0002192,4]
[381424783,1756191075340,-5330.80651826,0.0002192,4]
[381424784,1756191075349,-5330.80651826,0.0002192,4]
[381424785,1756191075359,-5330.80651826,0.0002192,4]
[381424786,1756191075368,-5330.80651826,0.0002192,4]
[381424787,1756191075377,-5330.80651826,0.0002192,4]
[381424788,1756191075386,-5330.80651826,0.0002192,4]
[381424789,1756191075396,-5330.80651826,0.0002192,4]
[381424790,1756191075405,-5330.80651826,0.0002192,4]
[381424791,1756191075415,-5330.80651826,0.0002192,4]
[381424792,1756191075424,-5330.80651826,0.0002192,4]
[381424793,1756191075433,-5330.80651826,0.0002192,4]
[381424794,1756191075442,-5330.80651826,0.0002192,4]
[381424795,1756191075454,-5330.80651826,0.0002192,4]
[381424796,1756191075464,-5330.80651826,0.0002192,4]
[381424797,1756191075475,-5330.80651826,0.0002192,4]
[381424798,1756191075485,-5330.8,0.0002192,4]
[381424799,1756191075496,-2133.53784183,0.0002192,4]
[381424800,1756191075506,-2133.53784183,0.0002192,4]
[381424801,1756191075516,-2133.53784183,0.0002192,4]
[381424802,1756191075526,-2133.53784183,0.0002192,4]
[381424803,1756191075535,-2133.53784183,0.0002192,4]
[381424804,1756191075550,-2133.53784183,0.0002192,4]
[381424805,1756191075559,-2133.53784183,0.0002192,4]
[381424806,1756191075569,-2133.53784183,0.0002192,4]
[381424807,1756191075578,-2133.53784183,0.0002192,4]
[381424808,1756191075587,-2133.53784183,0.0002192,4]
[381424809,1756191075596,-2133.53784183,0.0002192,4]
[381424810,1756191075606,-2133.53784183,0.0002192,4]
[381424811,1756191075615,-2133.53784183,0.0002192,4]
[381424812,1756191075624,-2133.53784183,0.0002192,4]
[381424813,1756191075633,-2133.53784183,0.0002192,4]
[381424814,1756191075642,-2133.53784183,0.0002192,4]
[381424815,1756191075651,-2133.53784183,0.0002192,4]
[381424816,1756191075660,-2133.53784183,0.0002192,4]
[381424817,1756191075670,-2133.53784183,0.0002192,4]
[381424818,1756191075679,-2133.53,0.0002192,4]
[381424819,1756191075690,-4978.25496428,0.0002192,4]
[381424820,1756191075701,-4978.25496428,0.0002192,4]
[381424821,1756191075713,-4978.25496428,0.0002192,4]
[381424822,1756191075723,-4978.25496428,0.0002192,4]
[381424823,1756191075735,-4978.25496428,0.0002192,4]
[381424824,1756191075744,-4978.25496428,0.0002192,4]
[381424825,1756191075754,-4978.25496428,0.0002192,4]
[381424826,1756191075763,-4978.25496428,0.0002192,4]
[381424827,1756191075772,-4978.25496428,0.0002192,4]
[381424828,1756191075781,-4978.25496428,0.0002192,4]
[381424829,1756191075791,-4978.25496428,0.0002192,4]
[381424830,1756191075802,-4978.25496428,0.0002192,4]
[381424831,1756191075811,-4978.25496428,0.0002192,4]
[381424832,1756191075822,-4978.25496428,0.0002192,4]
[381424833,1756191075831,-4978.25496428,0.0002192,4]
[381424834,1756191075840,-4978.25496428,0.0002192,4]
[381424835,1756191075849,-4978.25496428,0.0002192,4]
[381424836,1756191075859,-4978.25496428,0.0002192,4]
[381424837,1756191075868,-4978.25496428,0.0002192,4]
[381424838,1756191075877,-4978.25,0.0002192,4]
[381424839,1756191075886,-900.0,0.00021945,8]
[381424840,1756191075896,-900.0,0.00021945,8]
[381424841,1756191075905,-900.0,0.00021945,8]
[381424842,1756191075914,-900.0,0.00021945,8]
[381424843,1756191075924,-900.0,0.00021945,8]
[381424844,1756191075933,-900.0,0.00021945,8]
[381424845,1756191075942,-900.0,0.00021945,8]
[381424846,1756191075951,-900.0,0.00021945,8]
[381424847,1756191075960,-900.0,0.00021945,8]
[381424848,1756191075970,-900.0,0.00021945,8]
[381424849,1756191075979,-900.0,0.00021945,8]
[381424850,1756191075988,-900.0,0.00021945,8]
[381424851,1756191075997,-900.0,0.00021945,8]
[381424852,1756191076007,-900.0,0.00021945,8]
[381424853,1756191076016,-900.0,0.00021945,8]
[381424854,1756191076025,-900.0,0.00021945,8]
[381424855,1756191076035,-900.0,0.00021945,8]
[381424856,1756191076044,-900.0,0.00021945,8]
[381424857,1756191076054,-900.0,0.00021945,8]
[381424858,1756191076063,-900.0,0.00021945,8]
[381424859,1756191076075,-900.0,0.00021945,8]
[381424860,1756191076084,-900.0,0.00021945,8]
[381424861,1756191076094,-900.0,0.00021945,8]
[381424862,1756191076103,-900.0,0.00021945,8]
[381424863,1756191076112,-6000.0,0.00022,3]
[381424864,1756191076122,-785.78150524,0.00022,7]
[381424865,1756191076131,-650.19568502,0.00022,10]
[381424866,1756191076141,-361087.25988253,0.00022,4]
[381424867,1756191076151,-500.2,0.00022,2]
[381424868,1756191076160,-1980.0,0.00022,5]
[381424869,1756191076170,-2000.0,0.00022,7]
[381424870,1756191076179,-35850.85297045,0.00022,3]
[381424871,1756191077164,-7849.14702955,0.00022,3]
[381424872,1756191077175,-886.42142204,0.00022,2]
[381424873,1756191081736,-190.5423975,0.000119,2]
[381424874,1756191081747,-336.56,0.000137,2]
[381424875,1756191081757,-336.56,0.000137,2]
[381424876,1756191081767,-336.56,0.000137,2]
[381424877,1756191081781,-336.56,0.000137,2]
[381424878,1756191081791,-336.56,0.000137,2]
[381424879,1756191081800,-2195.0,0.00015062,2]
[381424880,1756191081811,-1988.79103238,0.00015336,2]
[381424881,1756191082081,-206.20896762,0.00015336,2]
[381424882,1756191082091,-503.0,0.00015382,2]
[381424883,1756191082102,-2195.0,0.0001561,2]
[381424884,1756191082113,-503.0,0.00015656,2]
[381424885,1756191082123,-1031.19103238,0.00015884,2]
[381424891,1756191238177,10000.0,0.00011,2]
[381424892,1756191252585,10000.0,0.00011,2]
[381424947,1756191747211,661.0,0.00028767,120]
[381425061,1756192033193,10000.0,0.00028767,120]
[381425062,1756192041341,-151.0,0.00011899,2]
[381425069,1756192082812,10000.0,0.00028767,120]
[381425078,1756192173200,10000.0,0.00028767,120]
[381425084,1756192221055,1221.0,0.00028767,120]
[381425085,1756192222173,1221.0,0.00028767,120]
[381425086,1756192222701,1221.0,0.00028767,120]
[381425087,1756192223479,1221.0,0.00028767,120]
[381425088,1756192224309,643.30794641,0.00028767,120]
[381425089,1756192225179,1221.0,0.00028767,120]
[381425091,1756192232391,-349.0,0.00011899,2]
[381425092,1756192232401,-265.24522961,0.00011899,2]
[381425093,1756192232411,-151.0,0.00011899,2]
[381425094,1756192232420,-172.80038974,0.00011899,2]
[381425095,1756192232430,-250.0,0.00011924,2]
[381425096,1756192232440,-152.0,0.00011949,2]
[381425097,1756192232450,-744.64250006,0.00011998,2]
[381425098,1756192232484,-455.35749994,0.00011998,2]
[381425099,1756192232493,-300.0,0.00011998,2]
[381425100,1756192232503,-300.0,0.00011998,2]
[381425101,1756192232512,-4451.14250006,0.00012,2]
[381425102,1756192232523,-780.87364305,0.00012,2]
[381425103,1756192232535,-4767.98385689,0.00012,2]
[381425104,1756192232545,-1642.641,0.00012,2]
[381425105,1756192232554,-250.0,0.00012068,2]
[381425106,1756192232564,-152.0,0.00012494,2]
[381425107,1756192232574,-4497.16683104,0.00012993,2]
[381425108,1756192232583,-153.0,0.00013089,2]
[381425109,1756192232593,-204.0,0.00013089,2]
[381425110,1756192232602,-152.0,0.00013089,2]
[381425111,1756192232612,-300.0,0.00013089,2]
[381425112,1756192232621,-250.0,0.00013089,2]
[381425113,1756192232631,-1131.0,0.00013198,2]
[381425114,1756192232641,-1000.0,0.00013199,2]
[381425115,1756192232650,-150.0,0.00013319,2]
[381425116,1756192232660,-871.902753,0.00013319,2]
[381425117,1756192232669,-1852.42,0.0001332,2]
[381425118,1756192232679,-6041.97,0.0001332,2]
[381425119,1756192232688,-299.99,0.0001332,2]
[381425120,1756192232697,-44710.32224838,0.0001332,2]
[381425313,1756192239014,-431.35830311,0.0001332,2]
[381425314,1756192239123,-544.4,0.0001332,2]
[381425315,1756192239138,-554.91201139,0.0001332,2]
[381425316,1756192239150,-363.29743712,0.0001332,2]
[381425317,1756192239162,-150.99,0.0001332,2]
[381425318,1756192239172,-250.0,0.00013393,2]
[381425319,1756192239182,-2751.0,0.00013425,2]
[381425320,1756192239192,-150.0,0.00013439,2]
[381425321,1756192239202,-15.0938222,0.00013536,2]
[381425322,1756192239214,-163.5861778,0.00013536,2]
[381425323,1756192239224,-674.0538222,0.00013619,2]
[381425324,1756192239236,-575.30635287,0.00013619,2]
[381425325,1756192239324,-2282.06506066,0.00013619,2]
[381425335,1756192240154,-1675.05793492,0.00013619,2]
[381425336,1756192240273,-8890.68682935,0.00013619,2]
[381425337,1756192240283,-151.0,0.00013677,2]
[381425338,1756192240292,-500.0,0.00013677,2]
[381425339,1756192240301,-500.0,0.00013677,2]
[381425340,1756192240311,-500.0,0.00013677,2]
[381425341,1756192240321,-500.0,0.00013677,2]
[381425342,1756192240331,-500.0,0.00013677,2]
[381425343,1756192240340,-500.0,0.00013677,2]
[381425344,1756192240350,-462.29087217,0.00013677,2]
[381425345,1756192240359,-151.0,0.00013677,2]
[381425346,1756192240370,-151.0,0.00013677,2]
[381425347,1756192240380,-151.0,0.00013677,2]
[381425348,1756192240389,-151.0,0.00013677,2]
[381425349,1756192240399,-151.0,0.00013677,2]
[381425350,1756192240408,-151.0,0.00013677,2]
[381425351,1756192240418,-151.0,0.00013677,2]
[381425352,1756192240428,-151.0,0.00013677,2]
[381425353,1756192240437,-151.0,0.00013677,2]
[381425354,1756192240446,-151.0,0.00013677,2]
[381425355,1756192240456,-200.0,0.00013677,2]
[381425356,1756192240466,-151.0,0.00013677,2]
[381425357,1756192240475,-151.0,0.00013677,2]
[381425358,1756192240485,-154.0,0.00013684,2]
[381425359,1756192240495,-428.63,0.00013699,2]
[381425360,1756192240505,-610.0,0.00013699,2]
[381425361,1756192240515,-1000.0,0.00013699,2]
[381425362,1756192240524,-200.0,0.00013699,2]
[381425363,1756192240534,-295.51874883,0.00013725,2]
[381425364,1756192240543,-500.0,0.00013732,2]
[381425365,1756192240553,-500.0,0.00013787,2]
[381425366,1756192240563,-666.0,0.0001425,3]
[381425367,1756192240572,-155.0,0.00014279,2]
[381425368,1756192240582,-528.27837818,0.00014327,2]
[381425369,1756192240592,-255.0,0.00014425,2]
[381425370,1756192240602,-502.86388625,0.000148,2]
[381425371,1756192240612,-1673.71777741,0.00014803,2]
[381425372,1756192240622,-250.0,0.00014839,2]
[381425373,1756192240632,-500.0,0.00014847,2]
[381425374,1756192240643,-1000.0,0.00014849,2]
[381425375,1756192240653,-512.84,0.00014865,2]
[381425376,1756192240663,-512.84,0.0001487,2]
[381425377,1756192240672,-156.0,0.00014874,2]
[381425378,1756192240682,-512.84,0.00014876,2]
[381425379,1756192240692,-512.84,0.00014881,2]
[381425380,1756192240703,-512.84,0.00014887,2]
[381425381,1756192240712,-512.84,0.00014892,2]
[381425382,1756192240721,-512.84,0.00014897,2]
[381425383,1756192240731,-96336.31279336,0.000149,2]
[381425384,1756192240741,-512.84,0.00014903,2]
[381425385,1756192240752,-512.84,0.00014908,2]
[381425386,1756192240763,-512.84,0.00014914,2]
[381425387,1756192240774,-512.84,0.00014919,2]